{"text_format":"1","workbook":"xlsx","n_sheets":3,"sheets":["form1","form2","select_items"],"not_rendered":{"charts":0,"images":0,"macros":1,"external_links":0,"defined_names":1,"comments":0,"pivot_tables":0},"unopened":[],"bounds":{"document_bytes":16777216,"sheet_cells":100000,"rows_first":2000,"rows_last":500,"rows_between":2000,"halvings":0,"cell_chars":16384,"cell_head_chars":4096},"cells_cut":0,"cells_raw":0,"read":"whole","date_system":"1900"}

{"sheet":"form1","index":0,"n_rows":60,"n_cols":13,"rows_kept":60,"cut":false,"hidden":false,"merged":[[59,1,59,12],[1,1,1,12],[4,1,4,12],[5,1,5,12],[6,1,6,12],[7,1,7,12],[8,5,8,8],[8,9,8,12],[8,1,8,4],[9,1,9,4],[9,5,9,8],[9,9,9,12],[10,1,10,4],[10,5,10,8],[11,11,11,12],[12,9,12,10],[12,11,12,12],[13,1,13,12],[27,5,27,8],[27,9,27,12],[14,5,14,8],[14,9,14,12],[15,5,15,8],[15,9,15,12],[52,5,52,8],[57,5,57,8],[57,9,57,12],[55,1,55,4],[55,5,55,8],[55,9,55,12],[56,1,56,4],[56,5,56,8],[56,9,56,12],[57,1,57,4],[32,5,32,8],[10,9,10,12],[11,1,12,4],[50,1,50,12],[51,1,51,4],[51,5,51,8],[51,9,51,12],[54,5,54,8],[11,7,11,8],[11,9,11,10],[17,1,24,12],[27,1,27,4],[14,1,14,4],[15,1,15,4],[11,5,11,6],[42,1,43,12],[44,1,44,12],[45,1,45,2],[49,1,49,2],[46,1,46,2],[47,1,47,2],[48,1,48,2],[54,9,54,12],[52,1,52,4],[29,1,29,4],[52,9,52,12],[53,1,53,4],[53,5,53,8],[53,9,53,12],[54,1,54,4],[29,9,29,12],[30,1,30,4],[40,1,40,12],[34,5,34,8],[34,9,34,12],[31,1,31,4],[31,5,31,8],[31,9,31,12],[33,1,33,4],[33,5,33,8],[33,9,33,12],[34,1,34,4],[35,1,35,4],[35,5,35,8],[35,9,35,12],[38,1,38,12],[39,1,39,12],[32,1,32,4],[29,5,29,8],[32,9,32,12],[16,1,16,10],[41,1,41,10],[45,3,45,5],[46,3,46,5],[47,3,47,5],[48,3,48,5],[49,3,49,5],[45,6,45,8],[46,6,46,8],[47,6,47,8],[48,6,48,8],[49,6,49,8],[45,9,45,11],[46,9,46,11],[47,9,47,11],[48,9,48,11],[49,9,49,11],[30,5,30,8],[30,9,30,12],[28,1,28,4],[28,5,28,8],[28,9,28,12]]}
[]
[null,"Sheet 1/2：Organisation information and Project outline"]
[]
[null,"Project summary"]
[null,"Organisation name"]
[]
[null,"Project title"]
[]
[null,"Country of project site (select)",null,null,null,"Area of project site (provice, village name, etc.)",null,null,null,"Area of project site (ha)"]
[null,"Select ▼",null,null,null,null,null,null,null,0]
[null,"Project type (select)",null,null,null,"Project period",null,null,null,"Number of beneficiaries"]
[null,"Select ▼",null,null,null,"Start (month, year)",null,"End (month, year)",null,"Total",null,"Number of women"]
[null,null,null,null,null,1,2022,1,2022,0,null,0]
[null,"Estimate of the budget amount (USD) *Auto-filling from form 2"]
[null,"Requested amount from SDM",null,null,null,"Co-financing",null,null,null,"Total"]
[null,{"$f":"form2!$H$105","v":0},null,null,null,{"$f":"form2!$H$111","v":0},null,null,null,{"$f":"form2!$B$105","v":0}]
[null,"Project outline (200 - 250 words)",null,null,null,null,null,null,null,null,null,"Word count:",{"$f":"IF(LEN(TRIM(B18))=0,0,LEN(TRIM(B18))-LEN(SUBSTITUTE(B18,\" \",\"\"))+1)","v":0}]
[]
[]
[]
[]
[]
[]
[]
[]
[]
[null,"Collaborating organisations   "]
[null,"Organisation name",null,null,null,"Organisation type (select)",null,null,null,"Please check if it is an IPSI member."]
[null,null,null,null,null,"Select ▼",null,null,null,0]
[null,null,null,null,null,"Select ▼",null,null,null,0]
[null,null,null,null,null,"Select ▼",null,null,null,0]
[null,null,null,null,null,"Select ▼",null,null,null,0]
[null,null,null,null,null,"Select ▼",null,null,null,0]
[null,null,null,null,null,"Select ▼",null,null,null,0]
[null,null,null,null,null,"Select ▼",null,null,null,0]
[null,null,null,null,null,"Select ▼",null,null,null,0]
[]
[null,"Information of project implementation organisation"]
[null,"Information about the organisation"]
[null,"Organisation's URL"]
[]
[null,"Scope of work (within 50 words)",null,null,null,null,null,null,null,null,null,"Word count:",{"$f":"IF(LEN(TRIM(B43))=0,0,LEN(TRIM(B43))-LEN(SUBSTITUTE(B43,\" \",\"\"))+1)","v":0}]
[]
[]
[null,"Past relevant projects"]
[null,"Period",null,"Project title",null,null,"Website (URL) if available",null,null,"Donor",null,null,"Fund"]
[null,null,null,null,null,null,null,null,null,null,null,null,0]
[null,null,null,null,null,null,null,null,null,null,null,null,0]
[null,null,null,null,null,null,null,null,null,null,null,null,0]
[null,null,null,null,null,null,null,null,null,null,null,null,0]
[null,"Staffing for the proposed project"]
[null,"Name",null,null,null,"Role",null,null,null,"Position and organisation"]
[]
[]
[]
[]
[]
[]
[]
[null,"Please fill in form 2 as well."]

{"sheet":"form2","index":1,"n_rows":139,"n_cols":13,"rows_kept":139,"cut":false,"hidden":false,"merged":[[93,9,93,12],[93,5,93,8],[95,1,95,4],[96,1,96,4],[92,1,92,12],[84,3,84,4],[85,3,85,4],[86,3,86,4],[80,3,80,4],[81,3,81,4],[82,3,82,4],[83,3,83,4],[81,9,81,10],[82,9,82,10],[83,9,83,10],[87,8,89,12],[130,5,130,6],[130,7,130,9],[107,1,107,6],[107,7,107,12],[108,1,108,6],[108,7,108,12],[109,7,109,12],[110,7,110,12],[129,5,129,6],[129,7,129,9],[127,1,127,4],[127,5,127,6],[127,7,127,9],[128,1,128,4],[128,5,128,6],[128,7,128,9],[129,1,129,4],[124,1,124,4],[124,5,124,6],[124,7,124,9],[126,1,126,4],[126,5,126,6],[126,7,126,9],[117,5,117,6],[131,1,131,9],[133,1,133,12],[134,1,136,12],[138,1,138,12],[25,1,25,2],[25,3,25,5],[25,6,25,8],[25,11,25,12],[26,1,26,2],[26,11,26,12],[26,3,26,5],[26,6,26,8],[28,1,28,2],[28,3,28,5],[28,6,28,8],[29,1,29,2],[29,3,29,5],[105,1,105,12],[109,1,109,6],[110,1,110,6],[93,1,94,4],[84,9,84,10],[85,9,85,10],[130,1,130,4],[125,1,125,4],[125,5,125,6],[125,7,125,9],[100,1,100,4],[113,1,113,12],[114,1,114,4],[114,5,114,6],[114,7,114,9],[115,5,115,6],[115,7,115,9],[115,1,115,4],[116,1,116,4],[116,5,116,6],[116,7,116,9],[119,5,119,6],[119,7,119,9],[117,1,117,4],[103,1,103,6],[103,7,103,12],[117,7,117,9],[123,5,123,6],[123,7,123,9],[121,1,121,4],[121,5,121,6],[78,9,78,10],[65,2,65,6],[65,8,65,12],[104,1,104,6],[97,1,97,4],[104,7,104,12],[99,1,99,4],[106,1,106,6],[106,7,106,12],[98,1,98,4],[79,9,79,10],[80,9,80,10],[69,9,69,10],[69,3,69,4],[75,3,75,4],[76,3,76,4],[77,3,77,4],[78,3,78,4],[79,3,79,4],[76,9,76,10],[77,9,77,10],[66,2,66,6],[66,8,66,12],[67,2,67,6],[37,11,37,12],[53,1,55,12],[38,1,38,12],[39,1,39,4],[39,5,39,8],[39,9,39,12],[73,9,73,10],[74,9,74,10],[75,9,75,10],[42,9,43,12],[68,1,68,12],[72,9,72,10],[74,3,74,4],[46,1,47,4],[46,5,47,8],[46,9,47,12],[49,1,51,12],[57,1,61,12],[64,1,64,12],[67,7,67,12],[121,7,121,9],[122,1,122,4],[122,5,122,6],[122,7,122,9],[123,1,123,4],[120,5,120,6],[120,7,120,9],[118,1,118,4],[120,1,120,4],[118,5,118,6],[118,7,118,9],[119,1,119,4],[1,1,1,12],[5,1,10,12],[11,1,11,12],[12,5,12,6],[12,8,12,9],[12,11,12,12],[12,2,12,3],[13,2,13,3],[13,5,13,6],[13,8,13,9],[13,10,13,12],[4,1,4,10],[14,4,14,12],[24,6,24,8],[70,9,70,10],[71,9,71,10],[14,2,14,3],[24,11,24,12],[16,1,18,12],[20,1,22,12],[23,1,23,12],[24,1,24,2],[24,3,24,5],[70,1,89,1],[70,3,70,4],[70,7,89,7],[71,3,71,4],[72,3,72,4],[73,3,73,4],[88,3,88,4],[89,3,89,4],[86,9,86,10],[31,1,31,2],[31,6,31,8],[31,11,31,12],[87,3,87,4],[32,11,32,12],[44,9,45,12],[44,1,45,4],[31,3,31,5],[36,1,36,2],[36,3,36,5],[36,6,36,8],[36,11,36,12],[33,1,33,2],[33,3,33,5],[33,6,33,8],[33,11,33,12],[34,1,34,2],[34,3,34,5],[34,6,34,8],[34,11,34,12],[35,1,35,2],[35,3,35,5],[35,6,35,8],[35,11,35,12],[40,1,41,4],[37,1,37,2],[37,3,37,5],[37,6,37,8],[15,1,15,10],[19,1,19,10],[48,1,48,10],[52,1,52,10],[56,1,56,10],[27,1,27,2],[27,3,27,5],[27,6,27,8],[27,11,27,12],[44,5,45,8],[40,5,41,8],[40,9,41,12],[42,1,43,4],[42,5,43,8],[28,11,28,12],[29,6,29,8],[29,11,29,12],[30,1,30,2],[30,3,30,5],[30,6,30,8],[30,11,30,12],[32,1,32,2],[32,3,32,5],[32,6,32,8]]}
[]
[null,"Sheet 2/2: Project details"]
[]
[null,"Project strategy"]
[null,"Background (within 250 words)",null,null,null,null,null,null,null,null,null,"Word count:",{"$f":"IF(LEN(TRIM(B6))=0,0,LEN(TRIM(B6))-LEN(SUBSTITUTE(B6,\" \",\"\"))+1)","v":0}]
[]
[]
[]
[]
[]
[]
[null,"Type of ecosystems (select all applicable)"]
[null,false,"Forest",null,false,"Grassland",null,false,"Freshwater",null,false,"Coast"]
[null,false,"Dryland",null,false,"Mountain",null,false,"Urban/peri-urban"]
[null,false,"Other (please specify)"]
[null,"Overall aim and objectives (within 100 words)",null,null,null,null,null,null,null,null,null,"Word count:",{"$f":"IF(LEN(TRIM(B17))=0,0,LEN(TRIM(B17))-LEN(SUBSTITUTE(B17,\" \",\"\"))+1)","v":0}]
[]
[]
[]
[null,"Expected outcome (within 200 words)",null,null,null,null,null,null,null,null,null,"Word count:",{"$f":"IF(LEN(TRIM(B21))=0,0,LEN(TRIM(B21))-LEN(SUBSTITUTE(B21,\" \",\"\"))+1)","v":0}]
[]
[]
[]
[null,"Planned activities and outputs"]
[null,"Activity title",null,"Contents",null,null,"Output",null,null,"Indicator value (baseline)","Indicator value (project end)","Unit of indicator"]
[]
[]
[]
[]
[]
[]
[]
[]
[]
[]
[]
[]
[]
[null,"Project stakeholders"]
[null,"Organisation type (select)",null,null,null,"Organisation name",null,null,null,"Role in this project (within 100 words)"]
[null,"Select ▼"]
[]
[null,"Select ▼"]
[]
[null,"Select ▼"]
[]
[null,"Select ▼"]
[]
[null,"What innovation will the project create? (within 100 words)",null,null,null,null,null,null,null,null,null,"Word count:",{"$f":"IF(LEN(TRIM(B50))=0,0,LEN(TRIM(B50))-LEN(SUBSTITUTE(B50,\" \",\"\"))+1)","v":0}]
[]
[]
[]
[null,"How can the long-term continuation of the project be secured? (within 100 words)",null,null,null,null,null,null,null,null,null,"Word count:",{"$f":"IF(LEN(TRIM(B54))=0,0,LEN(TRIM(B54))-LEN(SUBSTITUTE(B54,\" \",\"\"))+1)","v":0}]
[]
[]
[]
[null,"Risks and assumptions (within 100 words)",null,null,null,null,null,null,null,null,null,"Word count:",{"$f":"IF(LEN(TRIM(B58))=0,0,LEN(TRIM(B58))-LEN(SUBSTITUTE(B58,\" \",\"\"))+1)","v":0}]
[]
[]
[]
[]
[]
[]
[null,"Contribution to IPSI and global targets"]
[null," In what way does your project fall in line with the following SDM priorities (see the instruction on the right for more details)? (select all applicable)"]
[null,false,"1. Knowledge generation",null,null,null,null,false,"2. Institutionalisation"]
[null,false,"3. Area-based conservation",null,null,null,null,false,"4. Restoration"]
[null,false,"5. Sustainable consumption and production"]
[null,"To which global sustainability goals and targets is your project likely to make tangible contributions, i.e. 2020 Aichi Biodiversity Targets and 2030 Sustainable Development Goals (SDGs)? Please select if the contribution is direct or indirect."]
[null,"ABTs","Target","Contents",null,"Direct","Indirect","SDGs","Goal","Contents",null,"Direct","Indirect"]
[null,"ABTs","Target 1","People are aware of the values of biodiversity and the steps they can take to conserve and use it sustainably.",null,false,false,"SDGs","Goal 1","End poverty in all its forms everywhere",null,false,false]
[null,null,"Target 2","Biodiversity values have been integrated into national and local development and poverty reduction strategies and planning processes and are being incorporated into national accounting, as appropriate, and reporting systems.",null,false,false,null,"Goal 2","End hunger, achieve food security and improved nutrition and promote sustainable agriculture",null,false,false]
[null,null,"Target 3","Incentives, including subsidies, harmful to biodiversity are eliminated, phased out or reformed in order to minimize or avoid negative impacts, and positive incentives for the conservation and sustainable use of biodiversity are developed and applied, consistent and in harmony with the Convention and other relevant international obligations, taking into account national socio economic conditions.",null,false,false,null,"Goal 3","Ensure healthy lives and promote well-being for all at all ages",null,false,false]
[null,null,"Target 4","Governments, business and stakeholders at all levels have taken steps to achieve or have implemented plans for sustainable production and consumption and have kept the impacts of use of natural resources well within safe ecological limits.",null,false,false,null,"Goal 4","Ensure inclusive and equitable quality education and promote lifelong learning opportunities for all",null,false,false]
[null,null,"Target 5","The rate of loss of all natural habitats, including forests, is at least halved and where feasible brought close to zero, and degradation and fragmentation is significantly reduced.",null,false,false,null,"Goal 5","Achieve gender equality and empower all women and girls",null,false,false]
[null,null,"Target 6","All fish and invertebrate stocks and aquatic plants are managed and harvested sustainably, legally and applying ecosystem based approaches, so that overfishing is avoided, recovery plans and measures are in place for all depleted species, fisheries have no significant adverse impacts on threatened species and vulnerable ecosystems and the impacts of fisheries on stocks, species and ecosystems are within safe ecological limits.",null,false,false,null,"Goal 6","Ensure availability and sustainable management of water and sanitation for all",null,false,false]
[null,null,"Target 7","Areas under agriculture, aquaculture and forestry are managed sustainably, ensuring conservation of biodiversity.",null,false,false,null,"Goal 7","Ensure access to affordable, reliable, sustainable and modern energy for all",null,false,false]
[null,null,"Target 8","Pollution, including from excess nutrients, has been brought to levels that are not detrimental to ecosystem function and biodiversity.",null,false,false,null,"Goal 8","Promote sustained, inclusive and sustainable economic growth, full and productive employment and decent work for all",null,false,false]
[null,null,"Target 9","Invasive alien species and pathways are identified and prioritized, priority species are controlled or eradicated, and measures are in place to manage pathways to prevent their introduction and establishment.",null,false,false,null,"Goal 9","Build resilient infrastructure, promote inclusive and sustainable industrialization and foster innovation",null,false,false]
[null,null,"Target 10","The multiple anthropogenic pressures on coral reefs, and other vulnerable ecosystems impacted by climate change or ocean acidification are minimized, so as to maintain their integrity and functioning.",null,false,false,null,"Goal 10","Reduce inequality within and among countries",null,false,false]
[null,null,"Target 11","At least 17 per cent of terrestrial and inland water, and 10 per cent of coastal and marine areas, especially areas of particular importance for biodiversity and ecosystem services, are conserved through effectively and equitably managed, ecologically representative and well connected systems of protected areas and other effective area-based conservation measures, and integrated into the wider landscapes and seascapes.",null,false,false,null,"Goal 11","Make cities and human settlements inclusive, safe, resilient and sustainable",null,false,false]
[null,null,"Target 12","Tthe extinction of known threatened species has been prevented and their conservation status, particularly of those most in decline, has been improved and sustained.",null,false,false,null,"Goal 12","Ensure sustainable consumption and production patterns",null,false,false]
[null,null,"Target 13","The genetic diversity of cultivated plants and farmed and domesticated animals and of wild relatives, including other socio-economically as well as culturally valuable species, is maintained, and strategies have been developed and implemented for minimizing genetic erosion and safeguarding their genetic diversity.",null,false,false,null,"Goal 13","Take urgent action to combat climate change and its impacts",null,false,false]
[null,null,"Target 14","Ecosystems that provide essential services, including services related to water, and contribute to health, livelihoods and well-being, are restored and safeguarded, taking into account the needs of women, indigenous and local communities, and the poor and vulnerable.",null,false,false,null,"Goal 14","Conserve and sustainably use the oceans, seas and marine resources for sustainable development",null,false,false]
[null,null,"Target 15","Ecosystem resilience and the contribution of biodiversity to carbon stocks has been enhanced, through conservation and restoration, including restoration of at least 15 per cent of degraded ecosystems, thereby contributing to climate change mitigation and adaptation and to combating desertification.",null,false,false,null,"Goal 15","Protect, restore and promote sustainable use of terrestrial ecosystems, sustainably manage forests, combat desertification, and halt and reverse land degradation and halt biodiversity loss",null,false,false]
[null,null,"Target 16","The Nagoya Protocol on Access to Genetic Resources and the Fair and Equitable Sharing of Benefits Arising from their Utilization is in force and operational, consistent with national legislation.",null,false,false,null,"Goal 16","Promote peaceful and inclusive societies for sustainable development, provide access to justice for all and build effective, accountable and inclusive institutions at all levels",null,false,false]
[null,null,"Target 17","Each Party has developed, adopted as a policy instrument, and has commenced implementing an effective, participatory and updated national biodiversity strategy and action plan.",null,false,false,null,"Goal 17","Strengthen the means of implementation and revitalize the Global Partnership for Sustainable Development",null,false,false]
[null,null,"Target 18","The traditional knowledge, innovations and practices of indigenous and local communities relevant for the conservation and sustainable use of biodiversity, and their customary use of biological resources, are respected, subject to national legislation and relevant international obligations, and fully integrated and reflected in the implementation of the Convention with the full and effective participation of indigenous and local communities, at all relevant levels.",null,false,false]
[null,null,"Target 19","Knowledge, the science base and technologies relating to biodiversity, its values, functioning, status and trends, and the consequences of its loss, are improved, widely shared and transferred, and applied.",null,false,false]
[null,null,"Target 20","The mobilization of financial resources for effectively implementing the Strategic Plan for Biodiversity 2011-2020 from all sources, and in accordance with the consolidated and agreed process in the Strategy for Resource Mobilization, should increase substantially from the current levels. This target will be subject to changes contingent to resource needs assessments to be developed and reported by Parties.",null,false,false]
[]
[null,"Project timeline"]
[null,"(Please check in the boxes for each activity)"]
[null,"Activity title (select)",null,null,null,"1st year",null,null,null,"2nd year (in case that the project period is 2 years)"]
[null,null,null,null,null,"1st quarter","2nd quarter","3rd quarter","4th quarter","1st quarter","2nd quarter","3rd quarter","4th quarterー"]
[null,"Select ▼",null,null,null,false,false,false,false,false,false,false,false]
[null,"Select ▼",null,null,null,false,false,false,false,false,false,false,false]
[null,"Select ▼",null,null,null,false,false,false,false,false,false,false,false]
[null,"Select ▼",null,null,null,false,false,false,false,false,false,false,false]
[null,"Select ▼",null,null,null,false,false,false,false,false,false,false,false]
[null,"Select ▼",null,null,null,false,false,false,false,false,false,false,false]
[]
[null,"Budget estimate"]
[null,"Estimated total budget",null,null,null,null,null,"Requested amount of funds from the SDM Programme (approximate max. USD 20,000)"]
[null,{"$f":"$M$132","v":0},null,null,null,null,null,{"$f":"L132","v":0}]
[null,"Source and amount of co-financing/in-kind contributions"]
[null,"Name(s) of source(s)/organisation(s)",null,null,null,null,null,"Amount"]
[null,null,null,null,null,null,null,0]
[null,null,null,null,null,null,null,0]
[null,null,null,null,null,null,null,0]
[null,"Total",null,null,null,null,null,{"$f":"SUM(H108:M110)","v":0}]
[]
[null,"BUDGET BREAKDOWN"]
[null,"Budget and source of finance (USD)"]
[null,"Activity title (select)",null,null,null,"Item type (select)",null,"Item",null,null,"Co-financing","SDM","Sub-total"]
[null,"Select ▼",null,null,null,"Select ▼",null,null,null,null,0,0,{"$f":"SUM(K116:L116)","v":0}]
[null,"Select ▼",null,null,null,"Select ▼",null,null,null,null,0,0,{"$f":"SUM(K117:L117)","v":0}]
[null,"Select ▼",null,null,null,"Select ▼",null,null,null,null,0,0,0]
[null,"Select ▼",null,null,null,"Select ▼",null,null,null,null,0,0,0]
[null,"Select ▼",null,null,null,"Select ▼",null,null,null,null,0,0,0]
[null,"Select ▼",null,null,null,"Select ▼",null,null,null,null,0,0,0]
[null,"Select ▼",null,null,null,"Select ▼",null,null,null,null,0,0,0]
[null,"Select ▼",null,null,null,"Select ▼",null,null,null,null,0,0,0]
[null,"Select ▼",null,null,null,"Select ▼",null,null,null,null,0,0,0]
[null,"Select ▼",null,null,null,"Select ▼",null,null,null,null,0,0,0]
[null,"Select ▼",null,null,null,"Select ▼",null,null,null,null,0,0,0]
[null,"Select ▼",null,null,null,"Select ▼",null,null,null,null,0,0,0]
[null,"Select ▼",null,null,null,"Select ▼",null,null,null,null,0,0,0]
[null,"Select ▼",null,null,null,"Select ▼",null,null,null,null,0,0,0]
[null,"Select ▼",null,null,null,"Select ▼",null,null,null,null,0,0,0]
[null,"Select ▼",null,null,null,"Select ▼",null,null,null,null,0,0,0]
[null,"Total",null,null,null,null,null,null,null,null,{"$f":"SUM(K116:K131)","v":0},{"$f":"SUM(L116:L131)","v":0},{"$f":"SUM(M116:M131)","v":0}]
[]
[null,"IMPORTANT NOTE: The expenses listed below are generally not eligible to be covered by the grant."]
[null,"a. Permanent/full-time staff, project directors/managers. Personnel expenses for directors and full-time staff, office rent including utilities and water charges\nb. Expenses necessary for the routine operation of the organisations\nc. Construction expenses\nd. Equipment expenses, such as cars and computers, of more than USD 200.\ne. Sub-contracting is basically not recommended, but if unavoidable can be approved upon consultation with the Secretariat and up to USD 200\n\n*In case of uncertainty, please contact the secretariat for guidance on project expenses."]
[]
[]
[]
[null,"Application sheet consits of 2 pages. Please fill in both completely."]

{"sheet":"select_items","index":2,"n_rows":209,"n_cols":9,"rows_kept":209,"cut":false,"hidden":true,"merged":[]}
[]
[null,"Country","Project type","Organisation type","Organisation type of stakeholder","Item type","Year","Month","Activity title"]
[null,"Select ▼","Select ▼","Select ▼","Select ▼","Select ▼",2022,1,"Select ▼"]
[null,"Afghanistan","Field implementation","Government","Government","Remuneration",2023,2,{"$f":"OFFSET(form2!$B$26,0,0)&\"\"","v":""}]
[null,"Albania","Partnership building","Academic/research institution","Local government","Travel",2024,3,{"$f":"OFFSET(form2!$B$26,1,0)&\"\"","v":""}]
[null,"Algeria","Research","NGO","Private company","Meeting",2025,4,{"$f":"OFFSET(form2!$B$26,2,0)&\"\"","v":""}]
[null,"Andorra","Education","Private company","NGO","Printing",2026,5,{"$f":"OFFSET(form2!$B$26,3,0)&\"\"","v":""}]
[null,"Angola",null,null,"Other","Communication and transportation",2027,6,{"$f":"OFFSET(form2!$B$26,4,0)&\"\"","v":""}]
[null,"Antigua and Barbuda",null,null,null,"Equipment",2028,7,{"$f":"OFFSET(form2!$B$26,5,0)&\"\"","v":""}]
[null,"Argentina",null,null,null,"Other",2029,8,{"$f":"OFFSET(form2!$B$26,6,0)&\"\"","v":""}]
[null,"Armenia",null,null,null,null,2030,9,{"$f":"OFFSET(form2!$B$26,7,0)&\"\"","v":""}]
[null,"Australia",null,null,null,null,2031,10,{"$f":"OFFSET(form2!$B$26,8,0)&\"\"","v":""}]
[null,"Austria",null,null,null,null,2032,11,{"$f":"OFFSET(form2!$B$26,9,0)&\"\"","v":""}]
[null,"Azerbaijan",null,null,null,null,2033,12,{"$f":"OFFSET(form2!$B$26,10,0)&\"\"","v":""}]
[null,"Bahamas",null,null,null,null,2034,null,{"$f":"OFFSET(form2!$B$26,11,0)&\"\"","v":""}]
[null,"Bahrain",null,null,null,null,2035]
[null,"Bangladesh",null,null,null,null,2036]
[null,"Barbados",null,null,null,null,2037]
[null,"Belarus",null,null,null,null,2038]
[null,"Belgium",null,null,null,null,2039]
[null,"Belize",null,null,null,null,2040]
[null,"Benin",null,null,null,null,2041]
[null,"Bhutan",null,null,null,null,2042]
[null,"Bolivia, Plurinational State of",null,null,null,null,2043]
[null,"Bosnia and Herzegovina",null,null,null,null,2044]
[null,"Botswana",null,null,null,null,2045]
[null,"Brazil",null,null,null,null,2046]
[null,"Brunei Darussalam",null,null,null,null,2047]
[null,"Bulgaria",null,null,null,null,2048]
[null,"Burkina Faso",null,null,null,null,2049]
[null,"Burundi",null,null,null,null,2050]
[null,"Cambodia"]
[null,"Cameroon"]
[null,"Canada"]
[null,"Cape Verde"]
[null,"Central African Republic"]
[null,"Chad"]
[null,"Chile"]
[null,"China"]
[null,"Colombia"]
[null,"Comoros"]
[null,"Congo"]
[null,"Congo, the Democratic Republic of the"]
[null,"Cook Islands"]
[null,"Costa Rica"]
[null,"Côte d'Ivoire"]
[null,"Croatia"]
[null,"Cuba"]
[null,"Cyprus"]
[null,"Czechia"]
[null,"Denmark"]
[null,"Djibouti"]
[null,"Dominica"]
[null,"Dominican Republic"]
[null,"Ecuador"]
[null,"Egypt"]
[null,"El Salvador"]
[null,"Equatorial Guinea"]
[null,"Eritrea"]
[null,"Estonia"]
[null,"Eswatini"]
[null,"（Swaziland）"]
[null,"Ethiopia"]
[null,"Fiji"]
[null,"Finland"]
[null,"France"]
[null,"Gabon"]
[null,"Gambia"]
[null,"Georgia"]
[null,"Germany"]
[null,"Ghana"]
[null,"Greece"]
[null,"Grenada"]
[null,"Guatemala"]
[null,"Guinea"]
[null,"Guinea-Bissau"]
[null,"Guyana"]
[null,"Haiti"]
[null,"Holy See (Vatican City State)"]
[null,"Honduras"]
[null,"Hungary"]
[null,"Iceland"]
[null,"India"]
[null,"Indonesia"]
[null,"Iran, Islamic Republic of"]
[null,"Iraq"]
[null,"Ireland"]
[null,"Israel"]
[null,"Italy"]
[null,"Jamaica"]
[null,"Japan"]
[null,"Jordan"]
[null,"Kazakhstan"]
[null,"Kenya"]
[null,"Kiribati"]
[null,"Korea, Democratic People's Republic of"]
[null,"Korea, Republic of"]
[null,"Kosovo"]
[null,"Kuwait"]
[null,"Kyrgyzstan"]
[null,"Lao People's Democratic Republic"]
[null,"Latvia"]
[null,"Lebanon"]
[null,"Lesotho"]
[null,"Liberia"]
[null,"Libya"]
[null,"Liechtenstein"]
[null,"Lithuania"]
[null,"Luxembourg"]
[null,"Macedonia, the former Yugoslav Republic"]
[null,"Madagascar"]
[null,"Malawi"]
[null,"Malaysia"]
[null,"Maldives"]
[null,"Mali"]
[null,"Malta"]
[null,"Marshall Islands"]
[null,"Mauritania"]
[null,"Mauritius"]
[null,"Mexico"]
[null,"Micronesia, Federated States of"]
[null,"Moldova, Republic of"]
[null,"Monaco"]
[null,"Mongolia"]
[null,"Montenegro"]
[null,"Morocco"]
[null,"Mozambique"]
[null,"Myanmar"]
[null,"Nagorno Karabagh Republic"]
[null,"Namibia"]
[null,"Nauru"]
[null,"Nepal"]
[null,"Netherlands"]
[null,"New Zealand"]
[null,"Nicaragua"]
[null,"Niger"]
[null,"Nigeria"]
[null,"Niue"]
[null,"Northern Cyprus"]
[null,"Norway"]
[null,"Oman"]
[null,"Pakistan"]
[null,"Palau"]
[null,"Palestinian Territory, Occupied"]
[null,"Panama"]
[null,"Papua New Guinea"]
[null,"Paraguay"]
[null,"Peru"]
[null,"Philippines"]
[null,"Poland"]
[null,"Portugal"]
[null,"Pridnestrovian Moldavian Republic"]
[null,"Qatar"]
[null,"Romania"]
[null,"Russian Federation"]
[null,"Rwanda"]
[null,"Saint Kitts and Nevis"]
[null,"Saint Lucia"]
[null,"Saint Vincent and the Grenadines"]
[null,"Samoa"]
[null,"San Marino"]
[null,"Sao Tome and Principe"]
[null,"Saudi Arabia"]
[null,"Senegal"]
[null,"Serbia"]
[null,"Seychelles"]
[null,"Sierra Leone"]
[null,"Singapore"]
[null,"Slovakia"]
[null,"Slovenia"]
[null,"Solomon Islands"]
[null,"Somalia"]
[null,"Somaliland, Republic of"]
[null,"South Africa"]
[null,"South Ossetia"]
[null,"South Sudan"]
[null,"Spain"]
[null,"Sri Lanka"]
[null,"Sudan"]
[null,"Suriname"]
[null,"Sweden"]
[null,"Switzerland"]
[null,"Syrian Arab Republic"]
[null,"Taiwan, Province of China"]
[null,"Tajikistan"]
[null,"Tanzania, United Republic of"]
[null,"Thailand"]
[null,"Timor-Leste"]
[null,"Togo"]
[null,"Tonga"]
[null,"Trinidad and Tobago"]
[null,"Tunisia"]
[null,"Turkey"]
[null,"Turkmenistan"]
[null,"Tuvalu"]
[null,"Uganda"]
[null,"Ukraine"]
[null,"United Arab Emirates"]
[null,"United Kingdom"]
[null,"United States"]
[null,"Uruguay"]
[null,"Uzbekistan"]
[null,"Vanuatu"]
[null,"Venezuela, Bolivarian Republic of"]
[null,"Viet Nam"]
[null,"Western Sahara"]
[null,"Yemen"]
[null,"Zambia"]
[null,"Zimbabwe"]